[Event "Early-Titled-Tuesday-Blitz-September-26-2023"]
[Site "Chess.com"]
[Date "2023.09.26"]
[Round "10"]
[White "MITerryble"]
[Black "Zhigalko_Sergei"]
[Result "0-1"]
[WhiteElo "2941"]
[BlackElo "2865"]
[TimeControl "180+1"]
[EndTime "9:56:10 PDT"]
[Termination "Zhigalko_Sergei won on time"]

1. Nf3 {[%clk 0:03:00.9]} 1... Nf6 {[%clk 0:02:54.1]} 2. e3 {[%clk 0:03:01.2]}
2... e6 {[%clk 0:02:54.2]} 3. b3 {[%clk 0:03:01.3]} 3... b6 {[%clk 0:02:54.2]}
4. Bb2 {[%clk 0:03:01.8]} 4... Bb7 {[%clk 0:02:54.9]} 5. c4 {[%clk 0:03:02.3]}
5... d5 {[%clk 0:02:55.3]} 6. Qc2 {[%clk 0:03:00.9]} 6... Bd6 {[%clk 0:02:53.6]}
7. cxd5 {[%clk 0:02:51.6]} 7... exd5 {[%clk 0:02:53.4]} 8. Nd4 {[%clk
0:02:52.2]} 8... O-O {[%clk 0:02:36.9]} 9. Nf5 {[%clk 0:02:52.4]} 9... c5 {[%clk
0:02:30.5]} 10. d4 {[%clk 0:02:46.6]} 10... Nc6 {[%clk 0:02:29.1]} 11. Be2
{[%clk 0:02:04.6]} 11... Re8 {[%clk 0:02:15.6]} 12. Nxd6 {[%clk 0:01:52.6]}
12... Qxd6 {[%clk 0:02:15.6]} 13. O-O {[%clk 0:01:52.8]} 13... cxd4 {[%clk
0:02:13.8]} 14. exd4 {[%clk 0:01:53]} 14... Ne4 {[%clk 0:01:46.5]} 15. Qd1
{[%clk 0:01:41.6]} 15... Qg6 {[%clk 0:01:27.1]} 16. Bh5 {[%clk 0:01:04.7]} 16...
Qg5 {[%clk 0:01:23.6]} 17. Bf3 {[%clk 0:01:02.2]} 17... Ba6 {[%clk 0:01:08.1]}
18. Re1 {[%clk 0:00:58.6]} 18... Nb4 {[%clk 0:01:08.6]} 19. Bc1 {[%clk
0:00:32.9]} 19... Qf6 {[%clk 0:00:54.5]} 20. Be3 {[%clk 0:00:31.7]} 20... Rac8
{[%clk 0:00:36.1]} 21. Bxe4 {[%clk 0:00:29.4]} 21... dxe4 {[%clk 0:00:36.3]} 22.
Na3 {[%clk 0:00:27.7]} 22... h6 {[%clk 0:00:23.4]} 23. Qd2 {[%clk 0:00:24.1]}
23... Nd3 {[%clk 0:00:22.4]} 24. Red1 {[%clk 0:00:23.7]} 24... Qh4 {[%clk
0:00:20.5]} 25. Nc2 {[%clk 0:00:17.6]} 25... f5 {[%clk 0:00:18.8]} 26. g3 {[%clk
0:00:18.1]} 26... Qg4 {[%clk 0:00:18.3]} 27. Ne1 {[%clk 0:00:17.8]} 27... g5
{[%clk 0:00:13.6]} 28. d5 {[%clk 0:00:06.8]} 28... f4 {[%clk 0:00:13]} 29. Bd4
{[%clk 0:00:07.4]} 29... Rcd8 {[%clk 0:00:08]} 30. Qc3 {[%clk 0:00:03.9]} 30...
Rxd5 {[%clk 0:00:07.4]} 31. Bh8 {[%clk 0:00:04.1]} 31... Rd7 {[%clk 0:00:06.2]}
32. Nxd3 {[%clk 0:00:02.7]} 32... Bxd3 {[%clk 0:00:07.1]} 33. Rxd3 {[%clk
0:00:01.9]} 33... exd3 {[%clk 0:00:06.9]} 34. Bf6 {[%clk 0:00:02.2]} 34... d2
{[%clk 0:00:06.6]} 35. Qc4+ {[%clk 0:00:01.8]} 35... Qe6 {[%clk 0:00:06.9]} 0-1

[Event "Early-Titled-Tuesday-Blitz-September-26-2023"]
[Site "Chess.com"]
[Date "2023.09.26"]
[Round "10"]
[White "Goryachkina"]
[Black "Djager97"]
[Result "1/2-1/2"]
[WhiteElo "2663"]
[BlackElo "2563"]
[TimeControl "180+1"]
[EndTime "9:56:11 PDT"]
[Termination "Game drawn by repetition"]

1. e4 {[%clk 0:02:59.6]} 1... e6 {[%clk 0:03:00.2]} 2. d4 {[%clk 0:02:58.8]}
2... d5 {[%clk 0:03:00.4]} 3. Nc3 {[%clk 0:02:58.8]} 3... Nf6 {[%clk 0:03:00.3]}
4. Bg5 {[%clk 0:02:56.7]} 4... Be7 {[%clk 0:03:00]} 5. e5 {[%clk 0:02:55.8]}
5... Nfd7 {[%clk 0:03:00.5]} 6. h4 {[%clk 0:02:55.6]} 6... h6 {[%clk 0:03:00.5]}
7. Bxe7 {[%clk 0:02:54.3]} 7... Qxe7 {[%clk 0:03:01.4]} 8. Qg4 {[%clk
0:02:47.9]} 8... O-O {[%clk 0:03:01.5]} 9. Nf3 {[%clk 0:02:37.8]} 9... c5 {[%clk
0:03:01.7]} 10. dxc5 {[%clk 0:02:23]} 10... Nc6 {[%clk 0:03:02.1]} 11. Qf4
{[%clk 0:02:17.6]} 11... Nxc5 {[%clk 0:03:00.8]} 12. O-O-O {[%clk 0:02:14]}
12... a6 {[%clk 0:02:59.1]} 13. Rh3 {[%clk 0:02:03.2]} 13... f5 {[%clk
0:02:44.8]} 14. Rg3 {[%clk 0:01:33.4]} 14... Ne4 {[%clk 0:02:32]} 15. Rg6 {[%clk
0:01:31.1]} 15... Kh7 {[%clk 0:02:15.9]} 16. h5 {[%clk 0:01:28.3]} 16... Bd7
{[%clk 0:01:54.1]} 17. Bd3 {[%clk 0:01:22.2]} 17... Nxf2 {[%clk 0:01:45.7]} 18.
Re1 {[%clk 0:01:10.6]} 18... Ne4 {[%clk 0:01:31.4]} 19. g4 {[%clk 0:01:01]}
19... fxg4 {[%clk 0:01:21.2]} 20. Qxg4 {[%clk 0:00:59.5]} 20... Rxf3 {[%clk
0:01:14.6]} 21. Qxf3 {[%clk 0:00:56.6]} 21... Nxe5 {[%clk 0:01:14.2]} 22. Bxe4
{[%clk 0:00:27.6]} 22... dxe4 {[%clk 0:00:46.8]} 23. Qxe4 {[%clk 0:00:21]} 23...
Nxg6 {[%clk 0:00:46.2]} 24. hxg6+ {[%clk 0:00:20.8]} 24... Kh8 {[%clk
0:00:45.3]} 25. Qxb7 {[%clk 0:00:20.5]} 25... Rf8 {[%clk 0:00:38.1]} 26. Kb1
{[%clk 0:00:20.4]} 26... Qh4 {[%clk 0:00:34]} 27. Rd1 {[%clk 0:00:20.3]} 27...
Be8 {[%clk 0:00:26.8]} 28. a3 {[%clk 0:00:19.4]} 28... Bxg6 {[%clk 0:00:24.8]}
29. Qxa6 {[%clk 0:00:19.4]} 29... Rf2 {[%clk 0:00:20.8]} 30. Rc1 {[%clk
0:00:19.4]} 30... Kh7 {[%clk 0:00:21.1]} 31. Qxe6 {[%clk 0:00:18.8]} 31... Qh2
{[%clk 0:00:18.7]} 32. Qb3 {[%clk 0:00:17.6]} 32... h5 {[%clk 0:00:18.4]} 33.
Nd5 {[%clk 0:00:16]} 33... h4 {[%clk 0:00:16.9]} 34. Ne7 {[%clk 0:00:16.2]}
34... Be4 {[%clk 0:00:10.7]} 35. Qg8+ {[%clk 0:00:15.1]} 35... Kh6 {[%clk
0:00:10.2]} 36. Qh8+ {[%clk 0:00:15.6]} 36... Bh7 {[%clk 0:00:10]} 37. Ng8+
{[%clk 0:00:14.6]} 37... Kg6 {[%clk 0:00:10]} 38. Ne7+ {[%clk 0:00:15]} 38...
Kh6 {[%clk 0:00:10.3]} 39. Ng8+ {[%clk 0:00:15.2]} 39... Kg6 {[%clk 0:00:10.5]}
40. Ne7+ {[%clk 0:00:15.5]} 40... Kh6 {[%clk 0:00:11]} 1/2-1/2

[Event "Early-Titled-Tuesday-Blitz-September-26-2023"]
[Site "Chess.com"]
[Date "2023.09.26"]
[Round "10"]
[White "platy3"]
[Black "astralpulse"]
[Result "1-0"]
[WhiteElo "2878"]
[BlackElo "2677"]
[TimeControl "180+1"]
[EndTime "9:56:14 PDT"]
[Termination "platy3 won on time"]

1. e4 {[%clk 0:03:00.9]} 1... e5 {[%clk 0:02:59.3]} 2. Nf3 {[%clk 0:03:00.5]}
2... Nc6 {[%clk 0:02:59.2]} 3. Bb5 {[%clk 0:03:01.2]} 3... a6 {[%clk 0:02:58.5]}
4. Ba4 {[%clk 0:03:01.9]} 4... d6 {[%clk 0:02:58.2]} 5. O-O {[%clk 0:03:00]}
5... Bd7 {[%clk 0:02:56.8]} 6. c4 {[%clk 0:03:00]} 6... Nge7 {[%clk 0:02:56.6]}
7. Nc3 {[%clk 0:02:59.5]} 7... Ng6 {[%clk 0:02:56.8]} 8. d4 {[%clk 0:03:00.2]}
8... exd4 {[%clk 0:02:54]} 9. Nxd4 {[%clk 0:03:00.4]} 9... Be7 {[%clk 0:02:42]}
10. Nxc6 {[%clk 0:02:57.3]} 10... bxc6 {[%clk 0:02:35.6]} 11. f4 {[%clk
0:02:56.5]} 11... O-O {[%clk 0:02:33.4]} 12. Be3 {[%clk 0:02:56.3]} 12... f5
{[%clk 0:02:26.5]} 13. exf5 {[%clk 0:02:49.5]} 13... Rxf5 {[%clk 0:02:25.8]} 14.
Qd3 {[%clk 0:02:49.5]} 14... Qf8 {[%clk 0:02:18.7]} 15. g3 {[%clk 0:02:48.6]}
15... Rb8 {[%clk 0:02:12.1]} 16. b3 {[%clk 0:02:47.1]} 16... Rf7 {[%clk
0:02:04.1]} 17. Rae1 {[%clk 0:02:43.2]} 17... Bf6 {[%clk 0:01:57.8]} 18. Bd4
{[%clk 0:02:31.1]} 18... Bxd4+ {[%clk 0:01:48.8]} 19. Qxd4 {[%clk 0:02:32]}
19... c5 {[%clk 0:01:49.1]} 20. Qd3 {[%clk 0:02:29.1]} 20... Bxa4 {[%clk
0:01:49.2]} 21. Nxa4 {[%clk 0:02:29.8]} 21... Ne7 {[%clk 0:01:45.5]} 22. Nc3
{[%clk 0:02:28.6]} 22... Nf5 {[%clk 0:01:45]} 23. Nd5 {[%clk 0:02:26.4]} 23...
Nd4 {[%clk 0:01:42.8]} 24. Re4 {[%clk 0:02:21.3]} 24... c6 {[%clk 0:01:34.4]}
25. Nc3 {[%clk 0:02:20.3]} 25... Re8 {[%clk 0:01:31.5]} 26. Rxe8 {[%clk
0:02:10]} 26... Qxe8 {[%clk 0:01:30.9]} 27. Ne4 {[%clk 0:02:10.9]} 27... Qe7
{[%clk 0:01:23.8]} 28. Ng5 {[%clk 0:02:08.1]} 28... Rf5 {[%clk 0:01:19.8]} 29.
g4 {[%clk 0:01:53]} 29... Rxg5 {[%clk 0:00:55.1]} 30. fxg5 {[%clk 0:01:53]}
30... Qxg5 {[%clk 0:00:54.4]} 31. Qe4 {[%clk 0:01:45.1]} 31... h6 {[%clk
0:00:50.9]} 32. h3 {[%clk 0:01:42.4]} 32... d5 {[%clk 0:00:51]} 33. cxd5 {[%clk
0:01:23.7]} 33... cxd5 {[%clk 0:00:51.1]} 34. Qd3 {[%clk 0:01:24.1]} 34... Qe5
{[%clk 0:00:49.7]} 35. Kg2 {[%clk 0:01:21.2]} 35... Ne6 {[%clk 0:00:42.6]} 36.
Qf5 {[%clk 0:01:13.9]} 36... Qd6 {[%clk 0:00:31.8]} 37. Re1 {[%clk 0:01:03.1]}
37... Nf8 {[%clk 0:00:18.4]} 38. Re8 {[%clk 0:00:50.6]} 38... c4 {[%clk
0:00:16.6]} 39. Qe5 {[%clk 0:00:38.5]} 39... Qc5 {[%clk 0:00:14.3]} 40. Qe6+
{[%clk 0:00:36]} 40... Kh7 {[%clk 0:00:13.5]} 41. Qf7 {[%clk 0:00:26.8]} 41...
c3 {[%clk 0:00:05.2]} 42. Rxf8 {[%clk 0:00:26.4]} 42... d4 {[%clk 0:00:04.2]}
43. Qg8+ {[%clk 0:00:20]} 43... Kg6 {[%clk 0:00:03.7]} 44. Qe6+ {[%clk
0:00:20.9]} 44... Kh7 {[%clk 0:00:04.1]} 45. Qe4+ {[%clk 0:00:20.2]} 1-0

[Event "Early-Titled-Tuesday-Blitz-September-26-2023"]
[Site "Chess.com"]
[Date "2023.09.26"]
[Round "10"]
[White "twofoxniel"]
[Black "HajiyevKanan"]
[Result "1-0"]
[WhiteElo "2652"]
[BlackElo "2486"]
[TimeControl "180+1"]
[EndTime "9:56:17 PDT"]
[Termination "twofoxniel won by resignation"]

1. e4 {[%clk 0:03:00.9]} 1... c6 {[%clk 0:03:00.1]} 2. d4 {[%clk 0:02:59.4]}
2... d5 {[%clk 0:03:01]} 3. Nd2 {[%clk 0:02:56.5]} 3... a6 {[%clk 0:03:01.5]} 4.
Ngf3 {[%clk 0:02:56.1]} 4... Bg4 {[%clk 0:03:01.7]} 5. c3 {[%clk 0:02:55.4]}
5... e6 {[%clk 0:03:02]} 6. Bd3 {[%clk 0:02:54]} 6... Nf6 {[%clk 0:03:02.3]} 7.
O-O {[%clk 0:02:53]} 7... Be7 {[%clk 0:02:58.6]} 8. h3 {[%clk 0:02:52.8]} 8...
Bh5 {[%clk 0:02:58.4]} 9. Re1 {[%clk 0:02:53.4]} 9... O-O {[%clk 0:02:58.2]} 10.
e5 {[%clk 0:02:52.9]} 10... Nfd7 {[%clk 0:02:58.6]} 11. Nf1 {[%clk 0:02:53.5]}
11... c5 {[%clk 0:02:59.2]} 12. Ng3 {[%clk 0:02:53.8]} 12... Bxf3 {[%clk
0:02:58.6]} 13. Qxf3 {[%clk 0:02:53.4]} 13... cxd4 {[%clk 0:02:59.5]} 14. cxd4
{[%clk 0:02:54.3]} 14... Nc6 {[%clk 0:03:00.2]} 15. Be3 {[%clk 0:02:54.5]} 15...
Qb6 {[%clk 0:02:58]} 16. Qg4 {[%clk 0:02:52.4]} 16... Qxb2 {[%clk 0:02:39.2]}
17. Rab1 {[%clk 0:02:49.5]} 17... Qc3 {[%clk 0:02:34.8]} 18. Red1 {[%clk
0:02:37.6]} 18... Rfb8 {[%clk 0:02:09.4]} 19. Rb3 {[%clk 0:02:22.8]} 19... Qa5
{[%clk 0:02:08.5]} 20. Bb1 {[%clk 0:02:13.1]} 20... b5 {[%clk 0:02:03.9]} 21.
Bg5 {[%clk 0:02:07.8]} 21... Qd8 {[%clk 0:01:55.8]} 22. h4 {[%clk 0:01:59.2]}
22... Bxg5 {[%clk 0:01:41.8]} 23. hxg5 {[%clk 0:01:58.3]} 23... g6 {[%clk
0:01:41.5]} 24. Rf3 {[%clk 0:01:49.3]} 24... Ne7 {[%clk 0:01:33.8]} 25. Ne2
{[%clk 0:01:27.5]} 25... Nf5 {[%clk 0:01:30.9]} 26. Qf4 {[%clk 0:01:25.5]} 26...
Qe7 {[%clk 0:01:20]} 27. g4 {[%clk 0:01:24.9]} 27... Ng7 {[%clk 0:01:16.1]} 28.
Rh3 {[%clk 0:01:24.4]} 28... b4 {[%clk 0:01:10.6]} 29. Kg2 {[%clk 0:01:23]}
29... a5 {[%clk 0:01:10.2]} 30. Rdh1 {[%clk 0:01:21.8]} 30... Nf8 {[%clk
0:01:10.8]} 31. Rxh7 {[%clk 0:01:08.3]} 31... Nxh7 {[%clk 0:01:00.5]} 32. Qh2
{[%clk 0:01:06.6]} 32... Nh5 {[%clk 0:00:59.8]} 33. gxh5 {[%clk 0:01:06.9]}
33... Qxg5+ {[%clk 0:00:59.7]} 34. Ng3 {[%clk 0:01:07.5]} 34... gxh5 {[%clk
0:00:42.2]} 35. f4 {[%clk 0:01:07.3]} 35... Qg4 {[%clk 0:00:37.2]} 36. Kf2
{[%clk 0:00:54.9]} 36... Qxf4+ {[%clk 0:00:36.9]} 37. Ke2 {[%clk 0:00:55.1]}
37... h4 {[%clk 0:00:33.6]} 38. Rg1 {[%clk 0:00:47.4]} 38... hxg3 {[%clk
0:00:24.5]} 39. Bxh7+ {[%clk 0:00:46]} 39... Kf8 {[%clk 0:00:23.8]} 40. Rxg3
{[%clk 0:00:46.3]} 40... Rc8 {[%clk 0:00:20.4]} 41. Rg8+ {[%clk 0:00:44.9]}
41... Ke7 {[%clk 0:00:20.8]} 42. Qxf4 {[%clk 0:00:45]} 42... Rxg8 {[%clk
0:00:19.5]} 43. Qf6+ {[%clk 0:00:45.5]} 43... Kf8 {[%clk 0:00:19]} 44. Bxg8
{[%clk 0:00:44]} 44... Kxg8 {[%clk 0:00:19.9]} 45. Qe7 {[%clk 0:00:43.9]} 45...
Rb8 {[%clk 0:00:18.6]} 46. Qa7 {[%clk 0:00:43.4]} 46... Rb5 {[%clk 0:00:12]} 47.
Qa6 {[%clk 0:00:42.2]} 47... Rb8 {[%clk 0:00:12.2]} 48. Qxa5 {[%clk 0:00:42.2]}
48... b3 {[%clk 0:00:12]} 49. axb3 {[%clk 0:00:42.5]} 49... Rxb3 {[%clk
0:00:12.9]} 50. Qd8+ {[%clk 0:00:42.8]} 50... Kg7 {[%clk 0:00:13.1]} 51. Qf6+
{[%clk 0:00:43.1]} 51... Kf8 {[%clk 0:00:13.8]} 52. Kd2 {[%clk 0:00:43]} 52...
Rb2+ {[%clk 0:00:13.4]} 53. Ke3 {[%clk 0:00:43.1]} 53... Rb8 {[%clk 0:00:14.3]}
54. Qh8+ {[%clk 0:00:40.9]} 54... Ke7 {[%clk 0:00:13.2]} 55. Qxb8 {[%clk
0:00:41.8]} 1-0

[Event "Early-Titled-Tuesday-Blitz-September-26-2023"]
[Site "Chess.com"]
[Date "2023.09.26"]
[Round "10"]
[White "CristianS27"]
[Black "vedantgoswami"]
[Result "0-1"]
[WhiteElo "2473"]
[BlackElo "2366"]
[TimeControl "180+1"]
[EndTime "9:56:19 PDT"]
[Termination "vedantgoswami won on time"]

1. e4 {[%clk 0:02:31.6]} 1... Nc6 {[%clk 0:02:57.5]} 2. Nf3 {[%clk 0:02:31.2]}
2... d6 {[%clk 0:02:54]} 3. d4 {[%clk 0:02:27.6]} 3... Bg4 {[%clk 0:02:53.2]} 4.
Be3 {[%clk 0:02:25.9]} 4... Nf6 {[%clk 0:02:49.4]} 5. Nc3 {[%clk 0:02:16.2]}
5... e5 {[%clk 0:02:33.5]} 6. d5 {[%clk 0:02:09.1]} 6... Nb8 {[%clk 0:02:25.4]}
7. h3 {[%clk 0:02:02.4]} 7... Bh5 {[%clk 0:02:24.1]} 8. Be2 {[%clk 0:01:51.5]}
8... Nbd7 {[%clk 0:02:19.5]} 9. a4 {[%clk 0:01:43.1]} 9... c6 {[%clk 0:02:17.3]}
10. dxc6 {[%clk 0:01:24.6]} 10... bxc6 {[%clk 0:02:16.3]} 11. O-O {[%clk
0:01:23.2]} 11... Be7 {[%clk 0:02:13]} 12. Nh4 {[%clk 0:01:18.4]} 12... Bg6
{[%clk 0:02:05.4]} 13. Nxg6 {[%clk 0:01:11.9]} 13... hxg6 {[%clk 0:02:04.1]} 14.
a5 {[%clk 0:01:12.8]} 14... Nh5 {[%clk 0:01:47.3]} 15. Bc4 {[%clk 0:01:06.6]}
15... Qb8 {[%clk 0:01:31.2]} 16. Bb3 {[%clk 0:01:02.6]} 16... Nf4 {[%clk
0:01:23.4]} 17. Ne2 {[%clk 0:01:02.5]} 17... g5 {[%clk 0:01:20.9]} 18. Ng3
{[%clk 0:01:02]} 18... g6 {[%clk 0:01:19.1]} 19. Qd2 {[%clk 0:00:50]} 19... Qc8
{[%clk 0:01:02.6]} 20. a6 {[%clk 0:00:48.5]} 20... Nf6 {[%clk 0:01:01.4]} 21.
Rfd1 {[%clk 0:00:44.3]} 21... g4 {[%clk 0:01:00.5]} 22. Bxf4 {[%clk 0:00:41.7]}
22... exf4 {[%clk 0:00:57.5]} 23. Qxf4 {[%clk 0:00:42.2]} 23... gxh3 {[%clk
0:00:57.7]} 24. e5 {[%clk 0:00:39.2]} 24... dxe5 {[%clk 0:00:57]} 25. Qxe5
{[%clk 0:00:39.5]} 25... Kf8 {[%clk 0:00:38.1]} 26. Re1 {[%clk 0:00:34.6]} 26...
Bd8 {[%clk 0:00:33.4]} 27. Rad1 {[%clk 0:00:32.3]} 27... hxg2 {[%clk 0:00:31.7]}
28. f3 {[%clk 0:00:10.6]} 28... Bb6+ {[%clk 0:00:19.2]} 29. Rd4 {[%clk
0:00:08.9]} 29... Bxd4+ {[%clk 0:00:18.5]} 30. Qxd4 {[%clk 0:00:09.8]} 30... Qh3
{[%clk 0:00:12.6]} 31. Kf2 {[%clk 0:00:09.7]} 31... Kg7 {[%clk 0:00:08.4]} 32.
Rg1 {[%clk 0:00:08.9]} 32... Rad8 {[%clk 0:00:07.8]} 33. Qc4 {[%clk 0:00:08.4]}
33... Rd7 {[%clk 0:00:07.3]} 34. Rxg2 {[%clk 0:00:08.2]} 34... Rhd8 {[%clk
0:00:06.4]} 35. Qf4 {[%clk 0:00:03.4]} 35... Rd2+ {[%clk 0:00:05.8]} 36. Ke3
{[%clk 0:00:02.2]} 36... Qxg2 {[%clk 0:00:04.6]} 0-1

[Event "Early-Titled-Tuesday-Blitz-September-26-2023"]
[Site "Chess.com"]
[Date "2023.09.26"]
[Round "10"]
[White "nicholas_ilic"]
[Black "Smile2005"]
[Result "1-0"]
[WhiteElo "2247"]
[BlackElo "2397"]
[TimeControl "180+1"]
[EndTime "9:56:22 PDT"]
[Termination "nicholas_ilic won by checkmate"]

1. e4 {[%clk 0:03:00.4]} 1... c5 {[%clk 0:02:58.3]} 2. Nf3 {[%clk 0:02:58.7]}
2... d6 {[%clk 0:02:57.6]} 3. d4 {[%clk 0:02:56.4]} 3... cxd4 {[%clk 0:02:57.4]}
4. Nxd4 {[%clk 0:02:57.3]} 4... Nf6 {[%clk 0:02:57.4]} 5. Bd3 {[%clk 0:02:53.4]}
5... a6 {[%clk 0:02:56.1]} 6. O-O {[%clk 0:02:53.2]} 6... b5 {[%clk 0:02:55]} 7.
a4 {[%clk 0:02:53]} 7... b4 {[%clk 0:02:54.6]} 8. Bg5 {[%clk 0:02:53.3]} 8...
Bb7 {[%clk 0:02:53.2]} 9. Nd2 {[%clk 0:02:53.7]} 9... e5 {[%clk 0:02:52.8]} 10.
Nf5 {[%clk 0:02:53.5]} 10... g6 {[%clk 0:02:48.9]} 11. Nh6 {[%clk 0:02:51.2]}
11... Be7 {[%clk 0:02:44.5]} 12. Qf3 {[%clk 0:02:45.5]} 12... Nc6 {[%clk
0:02:37.2]} 13. Bc4 {[%clk 0:02:39.9]} 13... Nd4 {[%clk 0:02:27.9]} 14. Qh3
{[%clk 0:02:34.4]} 14... d5 {[%clk 0:02:25.1]} 15. exd5 {[%clk 0:02:28.1]} 15...
Bxd5 {[%clk 0:02:24.9]} 16. Bxd5 {[%clk 0:02:12.6]} 16... Nxd5 {[%clk
0:02:24.3]} 17. Bxe7 {[%clk 0:02:00.8]} 17... Qxe7 {[%clk 0:02:23.7]} 18. Ne4
{[%clk 0:02:01.4]} 18... Nf4 {[%clk 0:02:18]} 19. Qe3 {[%clk 0:01:24.2]} 19...
Nf5 {[%clk 0:01:39.6]} 20. Qb6 {[%clk 0:01:13.1]} 20... Kf8 {[%clk 0:00:56.3]}
21. Nxf5 {[%clk 0:00:37.9]} 21... gxf5 {[%clk 0:00:55.3]} 22. Qh6+ {[%clk
0:00:37.6]} 22... Ke8 {[%clk 0:00:48.9]} 23. Nf6+ {[%clk 0:00:37.2]} 23... Kd8
{[%clk 0:00:42.7]} 24. Rad1+ {[%clk 0:00:35.6]} 24... Kc8 {[%clk 0:00:41.3]} 25.
Nd5 {[%clk 0:00:20.5]} 25... Nxd5 {[%clk 0:00:29.8]} 26. Rxd5 {[%clk 0:00:17.8]}
26... f6 {[%clk 0:00:25.4]} 27. Rfd1 {[%clk 0:00:15.3]} 27... Rg8 {[%clk
0:00:16.3]} 28. Qh4 {[%clk 0:00:05.8]} 28... Qc7 {[%clk 0:00:05.3]} 29. Qxb4
{[%clk 0:00:04]} 29... Rb8 {[%clk 0:00:04.9]} 30. Qa3 {[%clk 0:00:02.9]} 30...
Rb6 {[%clk 0:00:04]} 31. a5 {[%clk 0:00:02.6]} 31... Rc6 {[%clk 0:00:04]} 32.
Qb3 {[%clk 0:00:02.1]} 32... Qg7 {[%clk 0:00:03.5]} 33. g3 {[%clk 0:00:01.4]}
33... f4 {[%clk 0:00:03.7]} 34. Rd7 {[%clk 0:00:01.9]} 34... Qxd7 {[%clk
0:00:03.4]} 35. Rxd7 {[%clk 0:00:02.8]} 35... fxg3 {[%clk 0:00:01.9]} 36. Qb7#
{[%clk 0:00:02.9]} 1-0

[Event "Early-Titled-Tuesday-Blitz-September-26-2023"]
[Site "Chess.com"]
[Date "2023.09.26"]
[Round "10"]
[White "Witik"]
[Black "hakanazeri2"]
[Result "0-1"]
[WhiteElo "2735"]
[BlackElo "2630"]
[TimeControl "180+1"]
[EndTime "9:56:27 PDT"]
[Termination "hakanazeri2 won by resignation"]

1. e4 {[%clk 0:02:59.9]} 1... c5 {[%clk 0:02:59.3]} 2. d4 {[%clk 0:03:00]} 2...
cxd4 {[%clk 0:03:00.2]} 3. c3 {[%clk 0:03:00.4]} 3... dxc3 {[%clk 0:03:00.4]} 4.
Nxc3 {[%clk 0:03:01]} 4... e6 {[%clk 0:03:01.1]} 5. Nf3 {[%clk 0:03:01.5]} 5...
Bb4 {[%clk 0:03:01.1]} 6. Bc4 {[%clk 0:02:54]} 6... Bxc3+ {[%clk 0:02:58.9]} 7.
bxc3 {[%clk 0:02:54.2]} 7... Nf6 {[%clk 0:02:59.7]} 8. e5 {[%clk 0:02:50]} 8...
Ne4 {[%clk 0:02:44.8]} 9. Qd4 {[%clk 0:02:48.7]} 9... f5 {[%clk 0:02:32.7]} 10.
exf6 {[%clk 0:02:36.8]} 10... Nxf6 {[%clk 0:02:32.9]} 11. Ba3 {[%clk 0:02:37.4]}
11... Nc6 {[%clk 0:02:29.5]} 12. Qd3 {[%clk 0:02:20.3]} 12... d5 {[%clk
0:01:17.4]} 13. Bb5 {[%clk 0:02:19.5]} 13... Ne4 {[%clk 0:01:17]} 14. O-O {[%clk
0:02:15.7]} 14... Nd6 {[%clk 0:01:15.7]} 15. c4 {[%clk 0:02:07.1]} 15... Nxb5
{[%clk 0:01:02]} 16. cxb5 {[%clk 0:02:07.2]} 16... Ne7 {[%clk 0:01:02.7]} 17.
Ng5 {[%clk 0:01:39.4]} 17... h6 {[%clk 0:01:02.4]} 18. Nf3 {[%clk 0:00:54.1]}
18... O-O {[%clk 0:01:00.2]} 19. Rfe1 {[%clk 0:00:54.7]} 19... Bd7 {[%clk
0:00:49.2]} 20. Nd4 {[%clk 0:00:50.9]} 20... Rf6 {[%clk 0:00:47.5]} 21. Bb2
{[%clk 0:00:32.1]} 21... Nf5 {[%clk 0:00:38.7]} 22. Nf3 {[%clk 0:00:31.5]} 22...
Rf8 {[%clk 0:00:37.4]} 23. a4 {[%clk 0:00:31.7]} 23... Qe8 {[%clk 0:00:26.1]}
24. Ne5 {[%clk 0:00:30.7]} 24... Rd8 {[%clk 0:00:24.7]} 25. Rac1 {[%clk
0:00:29]} 25... Qh5 {[%clk 0:00:17.7]} 26. Rc7 {[%clk 0:00:25.5]} 26... Bc8
{[%clk 0:00:14.4]} 27. f4 {[%clk 0:00:18.5]} 27... Qh4 {[%clk 0:00:11.8]} 28. g3
{[%clk 0:00:18.4]} 28... Qh3 {[%clk 0:00:11.8]} 29. g4 {[%clk 0:00:14.9]} 29...
Qxd3 {[%clk 0:00:11.4]} 30. Nxd3 {[%clk 0:00:15.8]} 30... Nh4 {[%clk 0:00:11.5]}
31. Rxg7+ {[%clk 0:00:15.6]} 31... Kh8 {[%clk 0:00:09.5]} 32. Be5 {[%clk
0:00:08]} 32... Nf3+ {[%clk 0:00:08.7]} 33. Kf2 {[%clk 0:00:08.6]} 33... Nxe5
{[%clk 0:00:09.3]} 34. Nxe5 {[%clk 0:00:02.1]} 34... Kxg7 {[%clk 0:00:09.4]} 35.
Kg3 {[%clk 0:00:02.9]} 35... Bd7 {[%clk 0:00:08.9]} 36. Rc1 {[%clk 0:00:02.8]}
36... Rc8 {[%clk 0:00:09.4]} 37. Rxc8 {[%clk 0:00:02.4]} 37... Bxc8 {[%clk
0:00:09.7]} 38. h4 {[%clk 0:00:03.3]} 38... d4 {[%clk 0:00:09.3]} 39. g5 {[%clk
0:00:03.7]} 39... hxg5 {[%clk 0:00:09.3]} 40. fxg5 {[%clk 0:00:04.2]} 40... Rf5
{[%clk 0:00:09.8]} 41. Nd3 {[%clk 0:00:04.6]} 41... e5 {[%clk 0:00:10.3]} 42. h5
{[%clk 0:00:05.1]} 42... Rxg5+ {[%clk 0:00:10.5]} 0-1